Cogmind - Beta 14 @@@ ROGUE MODE // 2025.03.08 @ 15:31:32 Player: winnking222 Result: Destroyed by Shrapnel Trap Performance ------------- Evolutions (0) 0 Regions Visited (3) 600 Robots Destroyed (18) 90 Value Destroyed (336) 336 Prototype IDs (0) 0 Alien Tech Used (0) 0 Bonus (26) 26 TOTAL SCORE: 1052 Bonus ------- Follower Combat Kills 74 Friendly Fire -48 Cogmind --------- Core Integrity 0/250 Matter 300/300 Energy 99/100 System Corruption 12% Temperature Cool (0) Movement Core (50) Location -10/Subcaves Parts ------- > --- POWER (1) -------- (None) > --- PROPULSION (2) --- (None) > --- UTILITY (2) ------ (None) > --- WEAPON (2) ------- (None) > --- INVENTORY (5) ---- Ion Engine Improved Heat Sink Subdweller Optics Scrap Shield Peak State ------------ > --- POWER ------------ Ion Engine > --- PROPULSION ------- Light Treads Light Treads > --- UTILITY ---------- Small Storage Unit Seismic Detector > --- WEAPON ----------- Heavy Assault Rifle Grenade Launcher > --- INVENTORY -------- Subdweller Power Source Subdweller Monowheel Improved Heat Sink Subdweller Optics Power Shielding Scrap Shield Mining Laser [Rating: 9] Favorites ----------- Power Ion Engine Engine Ion Engine Propulsion Light Treads Treads Light Treads Wheel Subdweller Monowheel Utility Small Storage Unit Device Seismic Detector Storage Small Storage Unit Weapon Assault Rifle Energy Gun EM Pulse Gun Ballistic Gun Assault Rifle Launcher Grenade Launcher Build | -11 -10 -10 -10 ------- Run | Yrd Mat Min Sub Slots Evolved . | . . . . Power . | . . . . Propulsion . | . . . . Utility . | . . . . Weapon . | . . . . Parts Attached 14 | 7 2 . 5 Power 2 | 1 . . 1 Engine 2 | 1 . . 1 Core . | . . . . Reactor . | . . . . Propulsion 3 | 2 . . 1 Treads 2 | 2 . . . Leg . | . . . . Wheel 1 | . . . 1 Hover . | . . . . Flight . | . . . . Utility 2 | 2 . . . Device 1 | 1 . . . Storage 1 | 1 . . . Processor . | . . . . Hackware . | . . . . Protection . | . . . . Artifact . | . . . . Weapon 7 | 2 2 . 3 Energy Gun 2 | 1 1 . . Energy Cannon . | . . . . Ballistic Gun 3 | 1 . . 2 Ballistic Cannon . | . . . . Launcher 2 | . 1 . 1 Special Weapon . | . . . . Impact Weapon . | . . . . Slashing Weapon . | . . . . Piercing Weapon . | . . . . Special Melee Weapon . | . . . . Unidentified Prototypes . | . . . . Parts Lost 7 | . . . 7 Power . | . . . . Propulsion 3 | . . . 3 Utility 1 | . . . 1 Weapon 3 | . . . 3 Highest Loss Streak 6 | . . . 6 To Critical Strikes 1 | . . . 1 Average Slot Usage (%) 94 | . 100 100 91 Engine 13 | . 14 14 13 Treads 26 | . 28 28 25 Device 13 | . 14 14 12 Storage 13 | . 14 14 13 Energy Gun 5 | . 11 14 . Ballistic Gun 13 | . 14 14 12 Launcher 8 | . 2 . 12 Peak Build Rating 9 | 7 7 7 9 Average Rating 7 | 5 7 7 7 On Entrance 5 | . 7 7 7 Naked Turns 62 | . . . 62 Heaviest Build 17 | 15 16 15 17 Greatest Support 40 | 40 40 40 40 Greatest Overweight (x) 3 | . . . 3 Average Overweight (x) . | . . . . Largest Inventory Capacity 8 | 8 8 8 8 Average Capacity 7 | 7 8 8 7 Most Carried 8 | 5 4 5 8 Average Carried 6 | 2 3 4 7 Final Capacity 8 | 8 8 8 5 Final Carried 5 | 2 4 5 5 Class Distribution -------------------- 100% | Mutant Dominant Class ---------------- Mutant | -10/Materials Mutant | -10/Mines Mutant | -10/Subcaves Resources | -11 -10 -10 -10 ----------- Run | Yrd Mat Min Sub Matter Collected 683 | 294 32 42 315 Remotely . | . . . . Salvage Created 401 | 185 32 97 87 Parts 40 | 17 8 3 12 Haulers Intercepted . | . . . . Recyclers Shooed . | . . . . Parts Field Recycled . | . . . . Retrieved Matter . | . . . . Parts Self-Destructed 23 | . . . 23 Prevented . | . . . . Kills | -11 -10 -10 -10 ------- Run | Yrd Mat Min Sub Combat Hostiles Destroyed 10 | . 2 2 6 Guns 5 | . 2 2 1 AOE 5 | . . . 5 Classes Destroyed 9 | 2 2 1 4 Tunneler 4 | 4 . . . Recycler 1 | 1 . . . Operator 1 | . 1 . . Turret 1 | . . . 1 Swarmer 5 | . 2 . 3 Grunt 2 | . . 2 . Sentry 1 | . . . 1 Subdweller 2 | . . . 2 Zionite 1 | . . . 1 Best Kill Streak 3 | 3 2 1 3 Combat Bots Only 3 | . 2 1 3 Max Kills in Single Turn 2 | 1 1 1 2 Gunslinging . | . . . . Exploded 2 | . . . 2 Melee . | . . . . Uniques/NPCs Destroyed . | . . . . Combat | -11 -10 -10 -10 -------- Run | Yrd Mat Min Sub Hostile Shots Fired 62 | . 4 17 41 Missed 24 | . 2 6 16 Damage Taken 1075 | . 16 159 900 Core 262 | . 6 44 212 Absorbed by Shields . | . . . . Core Remaining (%) 100 | 100 . . . Volleys Fired 58 | 8 4 13 33 Largest 2 | 2 2 2 2 Hottest 60 | 60 60 60 60 Shots Fired 99 | 16 8 26 49 Gun 75 | 16 7 26 26 Cannon . | . . . . Launcher 24 | . 1 . 23 Special . | . . . . Kinetic 48 | 8 4 13 23 Thermal . | . . . . Explosive 24 | . 1 . 23 Electromagnetic 27 | 8 3 13 3 Robot Hit Streak 9 | 6 2 7 9 Robot Miss Streak 2 | 1 2 2 2 Penetration Max . | . . . . Secondary Targets . | . . . . Shots Hit Robots 53 | 10 3 16 24 Core Hits 30 | 6 3 5 16 Critical Kills . | . . . . Critical Parts Destroyed . | . . . . Critical Strikes . | . . . . Melee Attacks . | . . . . Impact . | . . . . Slashing . | . . . . Piercing . | . . . . Sneak Attacks . | . . . . Combat Hostiles . | . . . . Follow-up Attacks . | . . . . Damage Inflicted 1239 | 135 72 218 814 Guns 610 | 135 34 218 223 Cannons . | . . . . Explosions 626 | . 35 . 591 Melee . | . . . . Ramming 3 | . 3 . . Kinetic 402 | 60 11 142 189 Thermal . | . . . . Explosive 626 | . 35 . 591 Electromagnetic 208 | 75 23 76 34 Impact . | . . . . Slashing . | . . . . Piercing . | . . . . Highest Corruption 12 | . . . 12 Average Corruption 12 | . . . 12 Corruption Purged . | . . . . Corruption Blocked . | . . . . Effects 4 | . . . 4 Matter Fused 1 | . . . 1 Data Loss (minor) 1 | . . . 1 Data Loss (major) 1 | . . . 1 Misdirections 1 | . . . 1 Overload Shots . | . . . . Overflow Damage 4 | . . . 4 Projectiles . | . . . . Explosions 4 | . . . 4 Melee . | . . . . Knockbacks . | . . . . Impact . | . . . . Kinetic . | . . . . Secondary . | . . . . Self-Inflicted Damage 145 | . . . 145 Shots 8 | . . . 8 Rammed 2 | . 1 1 . Targets Rammed 2 | . 1 1 . Kicked . | . . . . Crushed . | . . . . Highest Temperature 96 | . . 96 . Average Temperature 54 | . . 54 . Received Heat Transfer 198 | . . 96 102 Siege Activations . | . . . . Robots Corrupted . | . . . . Combat Hostiles . | . . . . Parts Fried 1 | 1 . . . Impact Corruptions . | . . . . Robots Melted . | . . . . Combat Hostiles . | . . . . Parts Melted . | . . . . Heat Transferred . | . . . . Parts Sabotaged . | . . . . Parts Stolen . | . . . . Parts Stripped . | . . . . Power Chain Reactions . | . . . . Alert | -11 -10 -10 -10 ------- Run | Yrd Mat Min Sub Peak Influence 92 | 25 92 85 . Initial 35 | . 16 35 . Average 49 | 10 33 62 . Maximum Alert Level . | . . . . Low Security (%) 100 | 100 100 100 . Level 1 . | . . . . Level 2 . | . . . . Level 3 . | . . . . Level 4 . | . . . . Level 5 . | . . . . High Security . | . . . . Max Security . | . . . . Squads Dispatched 1 | . 1 . . Investigation 1 | . 1 . . Extermination . | . . . . Reinforcement . | . . . . Assault . | . . . . Garrison . | . . . . Intercept . | . . . . Searches Triggered . | . . . . Construction Impeded . | . . . . Haulers Reinforced . | . . . . Active Scanning Responses . | . . . . Cargo Convoy Interrupts . | . . . . Stealth | -11 -10 -10 -10 --------- Run | Yrd Mat Min Sub Distress Signals . | . . . . Communications Jammed . | . . . . Distress Signals . | . . . . Times Spotted 20 | . 4 2 14 Peak Tracking Total 3 | . 3 1 3 Tactical Retreats 2 | . 1 . 1 Traps | -11 -10 -10 -10 ------- Run | Yrd Mat Min Sub Traps Triggered 2 | . . . 2 Indirectly . | . . . . Trap Hack Attempts . | . . . . Triggered . | . . . . Disarmed . | . . . . Reprogrammed . | . . . . Reused . | . . . . Traps Extracted . | . . . . Installed . | . . . . Triggered . | . . . . Machines | -11 -10 -10 -10 ---------- Run | Yrd Mat Min Sub Machines Disabled 2 | . 1 . 1 Max in Single Turn 1 | . 1 . 1 Machines Repaired . | . . . . Machines Dismantled . | . . . . Machines Sabotaged . | . . . . Overloaded Fab Kills . | . . . . Hacking | -11 -10 -10 -10 --------- Run | Yrd Mat Min Sub Machines Accessed 1 | . 1 . . Terminals 1 | . 1 . . Fabricators . | . . . . Repair Stations . | . . . . Recycling Units . | . . . . Scanalyzers . | . . . . Garrison Access . | . . . . Total Hacks 3 | . 3 . . Successful 2 | . 2 . . Failed 1 | . 1 . . Catastrophic . | . . . . Database Lockouts . | . . . . Manual . | . . . . Terminals 3 | . 3 . . Fabricators . | . . . . Repair Stations . | . . . . Recycling Units . | . . . . Scanalyzers . | . . . . Garrison Access . | . . . . Terminal Hacks 2 | . 2 . . Record 1 | . 1 . . Alert Level 1 | . 1 . . Fabricator Hacks . | . . . . Repair Station Hacks . | . . . . Recycling Unit Hacks . | . . . . Scanalyzer . | . . . . Garrison Access Hacks . | . . . . Unauthorized Hacks . | . . . . Terminals . | . . . . Fabricators . | . . . . Repair Stations . | . . . . Recycling Units . | . . . . Scanalyzers . | . . . . Garrison Access . | . . . . Data Cores Recovered 1 | . 1 . . Used 1 | . 1 . . Hacking Detections 1 | . 1 . . Full Trace Events 1 | . 1 . . Feedback Events . | . . . . Feedback Blocked . | . . . . Robot Schematics Acquired . | . . . . Robots Built . | . . . . Authchips . | . . . . Time . | . . . . Total Robot Build Rating . | . . . . Part Schematics Acquired . | . . . . Parts Built . | . . . . Authchips . | . . . . Time . | . . . . Total Part Build Rating . | . . . . Parts Repaired . | . . . . Time . | . . . . Parts Recycled . | . . . . Recycled Matter . | . . . . Retrieved Matter . | . . . . Retrieved Components . | . . . . Parts Scanalyzed . | . . . . Part Schematics Acquired . | . . . . Parts Damaged . | . . . . Bothacking | -11 -10 -10 -10 ------------ Run | Yrd Mat Min Sub Used RIF Installer . | . . . . Robots Hacked . | . . . . Non-combat . | . . . . Combat . | . . . . Robot Hacks Applied . | . . . . Relay Couplers Released . | . . . . Fabnet Peak Effective % . | . . . . Robots Rewired . | . . . . Allies Hacked . | . . . . Hacks Repelled . | . . . . Allies | -11 -10 -10 -10 -------- Run | Yrd Mat Min Sub Total Allies 5 | . . 5 . Largest Group 5 | . . 5 5 Highest-Rated Group 87 | . . 87 87 Highest-Rated Ally 31 | . . 31 31 Total Orders . | . . . . Ally Attacks 23 | . . . 23 Total Damage 266 | . . . 266 Kills 4 | . . . 4 Allies Corrupted . | . . . . Allies Melted . | . . . . Intel | -11 -10 -10 -10 ------- Run | Yrd Mat Min Sub Robot Analysis Total . | . . . . Derelict Logs Recovered 3 | . . 1 2 Drone Launches . | . . . . Drone Recoveries . | . . . . Exploration | -11 -10 -10 -10 ------------- Run | Yrd Mat Min Sub Turns Passed 2064 | 115 166 522 1261 Spaces Moved 1084 | 52 83 206 743 Core 153 | 14 . . 139 Treads 919 | 38 83 206 592 Legs . | . . . . Wheels 12 | . . . 12 Hover . | . . . . Flight . | . . . . Fastest Speed 50 | 50 160 160 50 Average Speed 146 | 130 160 160 142 Slowest Speed 200 | 160 160 160 200 Overloaded Moves . | . . . . Propulsion Burnouts . | . . . . Robots Hopped . | . . . . Cave-ins Triggered 1 | . . . 1 Exploration Rate (%) 28 | 3 26 41 43 Regions Visited 3 Branch Regions 2 Pre-discovered Areas 3 | . . 1 2 Known Exits Taken . | . . . . Unknown Exits Taken 3 | 1 1 1 . Scrap Searched 1 | . . 1 . Spaces Dug 18 | . . . 18 Terrain Destroyed 108 | . 4 . 104 Melee . | . . . . Projectile . | . . . . AOE 108 | . 4 . 104 Terrain Rammed . | . . . . Walls Destroyed . | . . . . Machines Disabled . | . . . . Actions | -11 -10 -10 -10 --------- Run | Yrd Mat Min Sub Total 1460 | 83 107 372 898 Wait 281 | 9 16 152 104 Move 1081 | 51 82 205 743 Hop . | . . . . Pick Up 17 | 8 2 1 6 Fast Attach 2 | 1 . . 1 Attach 8 | 6 . . 2 Detach . | . . . . Swap 4 | . 2 . 2 Drop 7 | . . . 7 Fire 58 | 8 4 13 33 Melee . | . . . . Ram . | . . . . Kick . | . . . . Crush 2 | . 1 1 . Escape Stasis . | . . . . Rewire . | . . . . Trap . | . . . . Miscellaneous . | . . . . Route ------- -11/Scrapyard -10/Materials -10/Mines (discovered 3 exits: [*Mat x2] / [*Sub]) -10/Subcaves (discovered 2 exits: [*Mat] / [*Rec]) History --------- Turn | Location | Event 5 | -11/Scrapyard | Discovered new exit (range 15) 116 | -11/Scrapyard | Entered Materials 273 | -10/Materials | Discovered new exit (range 7) 282 | -10/Materials | Entered Mines 312 | -10/Mines | Build established: Mutant 456 | -10/Mines | Learned location of Storage (-9) 502 | -10/Mines | Discovered new exit (range 7) 508 | -10/Mines | Assisted by bots powering up and referring to "LRC-V3" 534 | -10/Mines | Discovered new exit (range 10) 751 | -10/Mines | Discovered new exit (range 3) 804 | -10/Mines | Entered Subcaves 804 | -10/Subcaves | Accompanied by 5 allies 809 | -10/Subcaves | Led the pair of lost Derelicts to an unsafe place 930 | -10/Subcaves | Shifting Twisted Machinery released Humpback 1057 | -10/Subcaves | A swath of the cavern ceiling suddenly collapsed 1917 | -10/Subcaves | Ambushed by Subdweller buried in earth 1920 | -10/Subcaves | Ambushed by Subdweller buried in earth 1953 | -10/Subcaves | Crushed by falling debris 1953 | -10/Subcaves | System corruption reached 10% 1984 | -10/Subcaves | Lost 6 parts (3n1u2w) 1994 | -10/Subcaves | Core integrity fell below 50% 2006 | -10/Subcaves | Discovered new exit (range 9) 2007 | -10/Subcaves | Shifting Twisted Machinery released Sub. Power Source 2018 | -10/Subcaves | Discovered new exit (range 8) 2042 | -10/Subcaves | Learned location of Zion (-7) 2047 | -10/Subcaves | Core integrity fell below 20% 2065 | -10/Subcaves | Destroyed by Shrapnel Trap Last Messages --------------- 02016_ Acquired Sub. Machine Gun. 02018_ Acquired 10 matter. 02018_ EXIT=FOUND 02020_ Acquired 1 matter. 02021_ Destroyed Autobeam. 02023_ Subatomizers dissect the Sub. Optics. 02023_ Machine disabled. 02027_ Autobeam Turret destroyed. 02029_ Dropped Sub. Machine Gun. 02029_ Acquired 9 matter. 02033_ Triggered Piercing Trap. 02033_ Spikes shoot up from the floor. 02033_ Critical hit (Impale). 02037_ System corrupted: Component data lost. 02042_ Acquired derelict log, extracted data. World map updated: -7/Zion. 02052_ Acquired derelict log, extracted data. World map confirmed: -7/Zion. 02065_ Triggered Shrapnel Trap. 02065_ An expanding cloud of shrapnel blasts out in all directions. Map ----- +----------------------------------------------------+ | ?# %% %## ###?## ##?????# #??????????????? | | ?# %* ### #???# ##???## #??????????????? | | ?#" !&!&% ## ##???# ##??# #??????????????? | | #####[%%##### #???## #??## ##?????????????? | | %% ## ###???## #### #?????????????? | | %% % #??## # # #?????????????? | | ^ ^ #??# % ##?????????????? | | #??# #??????????????? | | ##% ## # ### # # ##??????????????? | | ### % #???????# #######???????????????? | | #?# % #??????## #????????????????????? | | ???#### ##????????????????????? | | ### ## ??# ##????????????????????? | | #??# #?# ### % %%##???????????????????? | | ##??# #??# #???????????????????? | | ###???# % ### ##??????????????????? | | #?????## #??????????????????? | | ??????## %% #??????????????????? | | ???????# % #####??????????????? | | ???????## ## % % % ##?????????????? | | ?????????#?? % #?????????????? | | ????????????? ## #?????????????? | | ?????????????? #?##^ ## ##?????????????? | | ??????????????? #???###### #?###??????????????? | | ????????????????????????## % #??????????????????? | | ????????????????????????#@ ##??????????????????? | | ????????????????????????## #???????????????????? | | ?????????????????????????#####???????????????????? | | ?????????????????????????????????????????????????? | | ?????????????????????????????????????????????????? | | ?????????????????????????????????????????????????? | | ?????????????????????????????????????????????????? | | ?????????????????????????????????????????????????? | | ?????????????????????????????????????????????????? | | ?????????????????????????????????????????????????? | | ?????????????????????????????????????????????????? | | ?????????????????????????????????????????????????? | | ?????????????????????????????????????????????????? | | ?????????????????????????????????????????????????? | | ?????????????????????????????????????????????????? | | ?????????????????????????????????????????????????? | | ?????????????????????????????????????????????????? | | ?????????????????????????????????????????????????? | | ?????????????????????????????????????????????????? | | | | | | | | | | | | | +----------------------------------------------------+ Best States ------------- Heat Dissipation 25 Energy Generation 15 Energy Capacity 250 Matter Stores 300 Matter Capacity 300 Sight Range 16 Terrain Scan Density 10 Evasion (%) 50 Recoil Reduction 2 Item Schematics ----------------- None Robot Schematics ------------------ None Fabricated ------------ Nothing Alien Tech Used ----------------- None Achievements -------------- None Challenges ------------ None Game ------ Seed BattlePropulsionImmobilizer Manual? 0 Play Time 00:13:10 Cumulative 32.8 hours Start 2025.03.08 @ 15:17:28 End 2025.03.08 @ 15:31:32 Sessions 1 Manual Loads 0 Difficulty Rogue Special Mode None Game No. 60 Rogue 60 Adventurer 0 Explorer 0 Win Type - Total 0 Types 0/0/0/0/0/0/0/0/0 Lore% 34 Gallery% 35 Achievement% 30 Wizard Run 0 Options --------- Layout 0 ASCII 0 Keyboard 0 Movement Mouse Keybinds 0 Fullscreen 1 Font 16/SmallcapsGlow Map View 75x55 Zoom Use 0% Tactical HUD 1 Map Filters NONE Filters NONE Steam 1 RUN: 3ef46a64-4586-4586-8c93-93a4e9e8d98c